bitfinex-derivatives/quotes_ETHF0:USTF0_20251210
["timestamp","ask_amount","ask_price","bid_price","bid_amount"]
[1765392059935,3.2078,3410.2,3409.4,3.35445]
[1765392060244,3.2078,3410.0,3409.4,0.15003877]
[1765392061135,3.2078,3409.8,3409.4,0.00338877]
[1765392061336,0.00667627,3410.8,3409.4,0.00338877]
[1765392061337,3.2078,3410.2,3409.5,0.14664]
[1765392062240,3.2078,3409.7,3408.8,3.2078]
[1765392062441,3.2078,3409.3,3408.4,3.2078]
[1765392062739,7.0011,3408.9,3408.1,0.14671]
[1765392063142,3.2078,3408.4,3408.1,0.00373659]
[1765392063346,3.2078,3408.2,3408.1,0.00373659]
[1765392063538,3.7933,3407.8,3407.4,3.2078]
[1765392063735,3.2078,3407.6,3406.8,3.2078]
[1765392063934,0.00439754,3407.5,3405.5,0.14682]
[1765392064137,2.97028101,3407.1,3405.5,0.14682]
[1765392064344,3.81651248,3407.5,3404.7,0.23982512]
[1765392064545,0.00439754,3407.5,3406.7,0.14677]
[1765392064746,0.00439754,3407.5,3405.5,2.97028101]
[1765392064950,0.00439754,3407.5,3405.6,2.0051]
[1765392065142,0.00439754,3407.5,3406.5,0.14677]
[1765392065342,2.97028101,3407.3,3405.4,0.14682]
[1765392065538,6.76358101,3406.7,3405.0,0.00264174]
[1765392065740,2.97028101,3406.1,3405.0,0.00264174]
[1765392065939,3.7933,3406.7,3403.6,0.1469]
[1765392065940,2.97028101,3405.5,3403.6,0.1469]
[1765392066136,2.97468519,3404.9,3403.6,0.1469]
[1765392066336,2.97028101,3404.3,3402.9,0.14693]
[1765392066940,2.97250683,3404.3,3402.9,0.15057794]
[1765392067147,37.37250683,3404.3,3403.3,0.14691]
[1765392067341,0.00222582,3404.3,3403.3,0.14691]
[1765392067644,0.00222582,3404.3,3402.9,0.00364794]
[1765392068245,0.00440418,3404.9,3404.0,0.14688]
[1765392068442,2.97468519,3404.9,3403.0,0.14692]
[1765392068646,2.97028101,3404.7,3403.0,0.14692]
[1765392069151,2.97324274,3404.7,3402.9,0.00364794]
[1765392069347,2.97028101,3404.1,3402.9,0.00364794]
[1765392069960,2.97028101,3403.3,3399.0,3.827]
[1765392070146,0.00440418,3402.0,3399.0,3.827]
[1765392070448,0.00440418,3402.0,3396.8,4.0284]
[1765392070449,2.97028101,3400.9,3396.8,4.0284]
[1765392070643,2.97028101,3401.5,3398.8,0.24001504]
[1765392070845,2.97028101,3401.5,3399.7,0.14707]
[1765392071041,2.97346766,3401.5,3399.7,0.0023829]
[1765392071241,3.5925,3400.8,3399.7,0.0023829]
[1765392071747,2.97028101,3400.3,3399.7,0.0023829]
[1765392071947,3.6448,3398.4,3396.8,0.14719]
[1765392072246,3.6448,3398.4,3395.7,5.7340027]
[1765392072441,2.97028101,3397.6,3395.7,5.7340027]
[1765392072642,3.6972,3396.9,3395.2,0.1]
[1765392072841,2.97028101,3396.0,3395.2,0.10226887]
[1765392073046,0.00441112,3396.4,3395.2,0.10226887]
[1765392073251,3.85404146,3395.9,3395.2,0.10226887]
[1765392073645,0.00441112,3396.4,3395.2,0.10226887]
[1765392074244,2.97028101,3396.1,3395.2,0.10226887]
[1765392074743,3.88098894,3396.0,3392.9,0.093]
[1765392074950,0.00441112,3396.4,3394.6,2.97028101]
[1765392075146,3.69994568,3396.9,3395.2,2.97028101]
[1765392075454,3.69994568,3396.9,3395.5,0.14725]
[1765392075647,0.00274568,3396.9,3395.5,0.0031344]
[1765392075845,3.6448,3398.4,3396.8,0.1472]
[1765392076047,3.6448,3398.4,3395.5,6.0031344]
[1765392076048,0.00441833,3397.9,3397.3,0.00441833]
[1765392076247,0.14706,3399.9,3397.3,0.00441833]
[1765392076557,3.6972,3397.8,3397.3,0.00441833]
[1765392076748,3.69989152,3397.8,3395.6,2.97028101]
[1765392077053,3.69989152,3397.8,3395.9,0.14723]
[1765392077249,3.81069388,3397.7,3395.5,0.0031344]
[1765392077459,3.69989152,3397.8,3395.5,0.0031344]
[1765392077648,0.00441833,3397.0,3396.3,0.00441833]
[1765392077850,3.69989152,3397.8,3396.3,0.00441833]
[1765392078153,0.00269152,3397.8,3396.6,2.97028101]
[1765392078352,2.97028101,3399.9,3396.6,2.97028101]
[1765392078549,2.97028101,3399.9,3396.8,2.97028101]
[1765392078951,0.00441833,3398.5,3396.8,2.97028101]
[1765392079153,3.6972,3400.6,3398.0,2.97028101]
[1765392079352,3.69974796,3400.6,3398.0,0.003558]
[1765392079654,0.05121183,3400.1,3398.1,2.97028101]
[1765392079854,3.69974796,3400.6,3398.0,0.150698]
[1765392080055,0.00441833,3399.6,3399.0,0.00441833]
[1765392081559,3.69974796,3400.6,3399.0,6.00441833]
[1765392081863,3.69974796,3400.6,3399.0,0.00441833]
[1765392082155,0.00254796,3400.6,3399.3,0.14709]
[1765392082554,0.00441833,3400.3,3399.3,0.14709]
[1765392082757,0.00254796,3400.6,3399.4,2.97028101]
[1765392082959,0.00254796,3400.6,3399.0,0.00441833]
[1765392083862,0.00441176,3400.1,3399.0,0.00441833]
[1765392085458,3.2078,3399.3,3399.0,0.00441833]
[1765392085659,3.2078,3399.3,3398.0,0.003558]
[1765392085860,3.6972,3398.2,3397.6,0.10958]
[1765392086058,3.2078,3397.7,3397.6,0.10958]
[1765392086567,3.2078,3397.7,3397.6,6.10958]
[1765392086860,3.6972,3399.5,3397.6,6.10958]
[1765392086861,0.00441176,3398.0,3397.6,6.10958]
[1765392087055,0.00713701,3398.0,3397.6,0.11224999]
[1765392087259,3.2078,3397.7,3396.3,3.2078]
[1765392087458,3.2078,3396.8,3396.3,3.2078]
[1765392087963,3.2078,3396.4,3395.2,3.2078]
[1765392088163,37.37028101,3397.9,3395.0,3.849]
[1765392088361,0.00441176,3396.8,3396.4,0.14721]
[1765392088556,0.00272525,3398.0,3396.2,2.97028101]
[1765392088762,0.00272525,3398.0,3396.9,0.14719]
[1765392089064,0.00272525,3398.0,3396.1,0.00441176]
[1765392089367,4.53923548,3400.3,3397.2,2.97028101]
[1765392089560,0.00441176,3398.7,3398.0,0.00441176]
[1765392090561,0.00681499,3398.7,3398.0,0.00815418]
[1765392090757,0.15393499,3398.7,3398.0,0.00815418]
[1765392090955,3.7309,3398.2,3395.3,5.64128101]
[1765392091173,0.14715,3397.8,3395.5,0.14725]
[1765392091464,0.14951323,3398.7,3395.9,2.97028101]
[1765392091657,0.14951323,3398.7,3395.3,2.671]
[1765392091658,0.14951323,3398.7,3396.4,2.97028101]
[1765392091859,0.00441176,3397.9,3397.2,0.00441176]
[1765392093261,3.7309,3396.9,3395.8,3.2078]
[1765392093563,0.14722,3396.2,3394.3,4.1111]
[1765392093763,0.80454379,3396.4,3394.8,2.97028101]
[1765392093958,3.2078,3395.1,3394.5,0.14729]
[1765392094159,0.00441852,3395.1,3394.8,0.14728]
[1765392094360,0.00777229,3395.1,3394.8,0.00289556]
[1765392094562,3.6928,3394.3,3391.6,0.14742]
[1765392094863,5.24310285,3393.0,3389.8,2.97028101]
[1765392095062,4.51618386,3392.5,3390.4,5.70506721]
[1765392095373,1.54590285,3391.5,3389.0,5.91147724]
[1765392095665,0.00441852,3390.6,3390.0,0.00441852]
[1765392095865,2.97028101,3390.1,3386.5,3.6825]
[1765392096066,1.55221773,3388.9,3387.0,0.14762]
[1765392096265,2.97028101,3389.1,3386.6,3.6825]
[1765392096266,0.81002444,3388.8,3386.6,3.6825]
[1765392096564,0.81002444,3388.7,3386.5,0.14764]
[1765392096766,2.8568,3388.5,3385.4,2.97028101]
[1765392097071,2.8568,3388.5,3382.6,1.2433662]
[1765392097072,2.97028101,3386.7,3384.1,0.14775]
[1765392097263,3.6876,3387.0,3383.1,2.39732127]
[1765392097264,2.923,3383.9,3383.1,2.39732127]
[1765392097460,2.923,3383.9,3380.0,0.14792]
[1765392097660,2.97028101,3383.7,3380.3,2.97028101]
[1765392097865,4.64450966,3383.8,3379.7,0.978]
[1765392097866,2.97028101,3383.3,3380.1,0.14792]
[1765392098072,0.00443328,3382.3,3380.5,2.97028101]
[1765392098268,0.00336563,3383.3,3381.4,2.97028101]
[1765392098472,2.97028101,3384.5,3381.3,5.60155101]
[1765392098770,2.97028101,3384.7,3381.3,2.4834]
[1765392099073,21.6,3385.5,3381.6,0.14786]
[1765392099267,0.00443328,3383.9,3383.2,0.00443328]
[1765392099471,0.00712992,3383.9,3383.2,0.00028038]
[1765392100067,3.6876,3387.0,3383.3,8.97028101]
[1765392100268,3.6876,3387.0,3383.2,0.00028038]
[1765392100269,3.6876,3387.0,3383.2,6.14806038]
[1765392100468,0.10115264,3387.2,3385.7,2.97028101]
[1765392100671,2.34071308,3389.4,3386.4,3.83014]
[1765392100871,0.00244889,3389.4,3386.4,3.83389993]
[1765392101069,0.00443328,3388.2,3387.6,0.00443328]
[1765392101871,0.00244889,3389.4,3387.7,6.0]
[1765392102071,0.00244889,3389.4,3387.6,2.97471429]
[1765392102277,2.97028101,3388.7,3387.6,0.00443328]
[1765392102572,2.33994889,3389.4,3386.4,0.00375993]
[1765392102877,2.97028101,3389.2,3386.5,0.14764]
[1765392103064,2.33994889,3389.4,3386.9,0.14762]
[1765392103270,2.33994889,3389.4,3386.4,0.00375993]
[1765392103467,2.97028101,3389.3,3386.4,0.00375993]
[1765392103665,0.00442666,3388.2,3387.6,0.00442666]
[1765392104268,16.58652386,3388.1,3387.6,1e-08]
[1765392104470,16.58652386,3388.1,3386.4,0.00375993]
[1765392104471,0.81923664,3388.0,3386.4,0.00375993]
[1765392104674,2.97028101,3387.3,3384.2,0.14774]
[1765392104976,6.81923664,3388.0,3384.1,2.97028101]
[1765392104977,2.97028101,3386.8,3384.1,2.97028101]
[1765392105171,3.88534285,3387.2,3382.9,5.81672559]
[1765392105172,3.88534285,3387.2,3384.7,2.97028101]
[1765392105374,0.00442666,3386.3,3385.2,0.1477]
[1765392105573,0.00711419,3386.3,3385.2,0.00270772]
[1765392106379,2.97028101,3386.2,3385.2,0.00270772]
[1765392106575,0.00711419,3386.3,3385.2,0.00270772]
[1765392106576,3.7309,3388.1,3385.3,6.0]
[1765392106877,2.97028101,3389.8,3386.8,0.14763]
[1765392107175,2.97028101,3389.2,3386.9,0.14762]
[1765392107481,3.84966378,3389.1,3385.4,13.455]
[1765392107776,0.00442666,3387.6,3386.9,0.00442666]
[1765392108175,0.00361303,3389.1,3387.0,0.14762]
[1765392108376,0.00361303,3389.1,3387.4,0.1476]
[1765392108577,3.2078,3388.2,3387.8,0.14758]
[1765392108874,0.00361303,3389.1,3387.8,0.00363019]
[1765392108875,3.2078,3388.1,3387.8,0.00363019]
[1765392109175,0.00442666,3388.3,3387.8,0.00363019]
[1765392109583,3.2078,3388.2,3387.8,0.00363019]
[1765392109971,0.00442666,3388.3,3387.8,0.00363019]
[1765392110173,3.2078,3388.2,3387.8,0.00363019]
[1765392110377,3.2078,3388.2,3386.9,0.00442666]
[1765392110681,0.00442666,3388.3,3387.9,0.14758]
[1765392110979,0.00361303,3389.1,3388.8,0.14754]
[1765392111180,2.97028101,3391.3,3389.3,0.14752]
[1765392111181,3.2078,3390.9,3389.3,0.14752]
[1765392111373,3.2078,3390.4,3389.0,3.2078]
[1765392111688,3.2078,3390.4,3387.4,19.811]
[1765392111689,3.2078,3391.0,3389.7,3.3553]
[1765392111873,0.00442666,3390.7,3390.0,0.00442666]
[1765392112073,0.00754642,3390.7,3390.5,3.2078]
[1765392112283,0.00754642,3390.7,3390.0,0.00757685]
[1765392112284,3.21534642,3390.7,3390.1,0.14748]
[1765392112576,3.2078,3390.4,3390.0,0.00757685]
[1765392112782,0.00754642,3390.7,3390.0,0.00757685]
[1765392113176,3.2078,3391.3,3390.7,0.14746]
[1765392113477,3.2078,3391.7,3391.4,0.14743]
[1765392113778,5.28311773,3394.9,3390.0,6.00757685]
[1765392113779,3.2078,3393.1,3391.6,6.17808101]
[1765392113982,3.2078,3393.1,3391.7,3.2078]
[1765392114171,3.2078,3393.1,3392.1,0.00442666]
[1765392114172,0.00442666,3392.7,3392.1,0.00442666]
[1765392114371,0.00442666,3392.7,3391.4,3.2078]
[1765392114570,3.80479037,3392.6,3390.5,0.14747]
[1765392114781,0.1474,3392.1,3388.7,2.97028101]
[1765392114981,0.00442666,3392.7,3390.2,0.14748]
[1765392115181,0.00442666,3392.7,3390.4,0.14747]
[1765392115476,0.00442666,3392.7,3389.6,0.14751]
[1765392115477,2.97028101,3392.0,3389.6,0.14751]
[1765392115680,0.14742,3391.6,3388.6,2.97028101]
[1765392115980,2.97028101,3391.9,3388.6,2.97028101]
[1765392116171,2.97028101,3391.9,3390.1,0.14748]
[1765392116379,3.82564939,3392.6,3390.6,0.14746]
[1765392116580,3.82564939,3392.6,3388.2,0.23060097]
[1765392116581,0.00442666,3392.7,3391.3,0.00442666]
[1765392116877,2.97028101,3392.6,3391.3,0.00442666]
[1765392117185,3.2078,3391.4,3391.3,0.00442666]
[1765392117975,3.2078,3391.4,3388.9,2.97028101]
[1765392117976,3.2078,3391.4,3388.9,3.2078]
[1765392118181,3.2078,3390.1,3388.9,3.2078]
[1765392118383,1.55221773,3393.4,3390.1,9.27253059]
[1765392118681,3.2078,3394.0,3392.7,3.35517]
[1765392118886,3.2078,3394.0,3389.8,3.7522]
[1765392118887,0.00441989,3393.7,3393.0,3.21221989]
[1765392119078,3.2078,3393.1,3393.0,0.00441989]
[1765392119277,0.00340071,3393.1,3393.0,0.00742933]
[1765392119478,0.00441989,3393.7,3393.0,0.00742933]
[1765392119687,3.2078,3393.5,3393.0,3.21522933]
[1765392120378,0.00441989,3393.7,3393.4,3.2078]
[1765392120574,3.2078,3394.6,3393.4,3.2078]
[1765392120778,3.2078,3394.6,3394.2,3.2078]
[1765392121076,3.2078,3395.0,3394.2,3.2078]
[1765392121277,3.2078,3396.5,3394.9,3.2078]
[1765392121483,0.00343911,3396.5,3396.4,0.14721]
[1765392121784,0.00343911,3396.5,3396.4,0.15079309]
[1765392121988,0.00343911,3396.5,3395.4,0.00441989]
[1765392122284,3.2078,3396.0,3395.5,0.14725]
[1765392122484,3.2078,3396.4,3395.5,0.14725]
[1765392122685,3.2078,3396.4,3395.4,0.00441989]
[1765392122877,3.2078,3395.6,3395.4,0.00441989]
[1765392123079,3.2078,3395.6,3395.4,0.00724001]
[1765392123285,3.2078,3396.1,3395.4,0.00724001]
[1765392123487,3.2078,3395.7,3395.4,0.00724001]
[1765392123781,3.2078,3395.7,3394.2,3.2078]
[1765392123984,3.2078,3395.6,3394.2,3.2078]
[1765392124285,3.2078,3396.3,3395.5,3.2078]
[1765392124484,3.2078,3396.3,3395.0,0.14727]
[1765392124485,3.2078,3396.1,3395.0,0.14727]
[1765392124683,0.00343911,3396.5,3395.5,3.2078]
[1765392124990,0.00441989,3396.3,3396.1,0.14722]
[1765392125190,3.20447795,3396.6,3396.5,0.14721]
[1765392125388,3.2078,3397.2,3396.9,0.14719]
[1765392125581,3.2078,3397.2,3395.7,0.00441989]
[1765392125582,3.2078,3397.6,3396.8,3.2078]
[1765392125787,3.2078,3397.6,3397.4,0.14717]
[1765392126079,3.2078,3397.6,3396.9,3.2078]
[1765392126286,0.00666844,3397.6,3397.5,0.14716]
[1765392126677,0.00666844,3397.6,3396.7,3.2078]
[1765392126678,3.21446844,3397.6,3397.1,0.14718]
[1765392126881,0.00666844,3397.6,3397.2,3.2078]
[1765392127082,0.00666844,3397.6,3397.5,0.14716]
[1765392127381,3.2078,3399.0,3398.9,0.1471]
[1765392127581,2.60748579,3401.3,3396.1,6.01544492]
[1765392127582,3.2078,3399.2,3398.4,3.2078]
[1765392127786,3.2078,3398.8,3398.1,0.14714]
[1765392127985,3.2078,3398.5,3398.1,0.14714]
[1765392128285,0.00293551,3398.5,3398.3,0.14713]
[1765392128585,3.21073551,3398.5,3398.1,0.00293573]
[1765392128787,3.21073551,3398.5,3397.3,0.14717]
[1765392128983,3.2078,3397.4,3396.8,3.2078]
[1765392129182,3.2078,3398.0,3397.2,0.14718]
[1765392129587,3.2078,3398.0,3396.8,3.2078]
[1765392129793,3.2078,3397.2,3397.1,0.00441248]
[1765392130587,3.2078,3397.2,3396.2,0.14722]
[1765392130788,3.2078,3396.3,3396.2,0.14722]
[1765392130982,3.2078,3396.3,3395.2,3.2078]
[1765392131185,3.2078,3395.9,3395.2,3.2078]
[1765392131382,3.2078,3395.9,3393.8,3.52833433]
[1765392131383,3.2078,3395.7,3394.8,3.2078]
[1765392131593,0.00441248,3395.6,3394.9,0.00441248]
[1765392131891,3.2078,3395.3,3394.9,0.00441248]
[1765392132693,0.00441248,3395.6,3394.9,0.00441248]
[1765392132694,0.00441248,3395.6,3395.3,0.14726]
[1765392133096,0.00441248,3395.6,3394.9,0.00441248]
[1765392133097,0.00441248,3395.6,3395.4,0.14725]
[1765392133289,0.00441248,3395.6,3395.5,3.35505]
[1765392133493,3.2078,3396.3,3396.2,0.14722]
[1765392133689,3.52833433,3398.1,3396.2,3.2078]
[1765392133690,3.2078,3397.2,3396.2,3.2078]
[1765392133992,3.2078,3396.3,3395.8,0.14724]
[1765392134189,3.2078,3396.3,3395.9,0.14723]
[1765392134394,3.2078,3396.3,3395.4,3.2078]
[1765392134395,3.2078,3396.3,3396.0,0.14723]
[1765392134689,0.00441248,3396.2,3396.0,0.14723]
[1765392135397,0.00441248,3396.2,3396.1,0.14723]
[1765392136300,0.00441248,3396.2,3396.1,6.14723]
[1765392136889,3.2078,3397.6,3396.1,6.14723]
[1765392136890,3.2078,3397.6,3397.3,0.14717]
[1765392137489,3.2078,3397.6,3395.5,0.00441248]
[1765392137490,0.82466243,3397.5,3396.5,0.14721]
[1765392137695,3.2078,3397.0,3396.2,3.2078]
[1765392137896,0.00441248,3396.9,3396.2,0.00352391]
[1765392138194,0.00441248,3396.9,3396.8,3.355]
[1765392138395,0.00441248,3396.9,3396.2,3.21132391]
[1765392138600,3.2078,3396.6,3396.2,0.00352391]
[1765392138805,0.82588228,3396.5,3395.5,0.00441248]
[1765392139100,3.2078,3396.0,3395.5,0.15166248]
[1765392139299,0.82750415,3395.9,3395.7,0.14724]
[1765392139499,3.2078,3396.6,3396.3,0.14722]
[1765392139697,0.82741188,3396.5,3396.3,0.15014317]
[1765392140004,0.82741188,3396.5,3396.4,0.14721]
[1765392140795,22.42741188,3396.5,3396.3,0.00292317]
[1765392140997,0.82741188,3396.4,3395.9,0.14723]
[1765392141193,0.82741188,3396.3,3396.2,0.14722]
[1765392141901,0.00441248,3396.9,3396.8,0.1472]
[1765392143404,1.5500928,3396.9,3396.2,0.00293182]
[1765392143703,3.2078,3396.5,3396.2,0.00293182]
[1765392143906,1.54568032,3396.4,3396.2,0.00293182]
[1765392144109,4.75348032,3396.5,3396.4,0.14721]
[1765392144309,3.2078,3396.5,3396.4,0.14721]
[1765392144503,3.2078,3396.5,3395.7,0.14724]
[1765392144697,4.76683299,3396.1,3395.7,0.14724]
[1765392144897,4.76683299,3396.1,3395.5,0.00441248]
[1765392144898,1.55903299,3395.9,3395.8,0.14724]
[1765392145407,5.28651066,3396.1,3395.8,0.15089457]
[1765392145807,5.28651066,3396.1,3395.9,0.14723]
[1765392146510,3.2078,3396.1,3395.8,0.00365457]
[1765392146802,9.2078,3396.1,3394.9,3.35508]
[1765392147004,2.08664735,3395.1,3395.0,0.14727]
[1765392147201,2.08664735,3395.2,3395.1,0.14727]
[1765392147503,2.08664735,3395.2,3394.5,3.2078]
[1765392147504,3.2078,3395.3,3394.6,0.14729]
[1765392147700,3.2078,3394.7,3394.6,0.14729]
[1765392147904,3.2078,3394.7,3394.6,0.1498293]
[1765392148301,6.53552702,3396.3,3394.6,0.0025393]
[1765392148498,2.09824707,3396.0,3395.9,0.14723]
[1765392148698,3.2078,3396.8,3396.0,0.14723]
[1765392148907,3.2078,3396.4,3396.0,0.14723]
[1765392149108,3.2078,3396.4,3394.6,0.0025393]
[1765392149109,3.2078,3396.3,3395.3,3.2078]
[1765392149407,3.2078,3396.0,3395.5,0.00441248]
[1765392150006,6.9828,3395.6,3395.5,1.248e-05]
[1765392150310,3.775,3395.6,3395.5,1.248e-05]
[1765392151209,1.9121,3395.9,3395.7,0.14724]
[1765392151512,1.9121,3395.9,3395.5,1.248e-05]
[1765392151699,1.9121,3395.9,3395.8,0.14724]
[1765392152610,1.9121,3395.9,3395.5,1.248e-05]
[1765392152807,3.2078,3395.7,3395.5,1.248e-05]
[1765392153114,1.9121,3395.9,3395.5,1.248e-05]
[1765392153410,1.9121,3395.9,3395.8,3.35504]
[1765392153609,1.9121,3395.9,3395.8,0.14724]
[1765392154304,1.9121,3395.9,3395.8,3.35504]
[1765392154710,0.00441248,3396.1,3395.8,3.2078]
[1765392154912,0.00281677,3397.0,3396.9,0.14719]
[1765392155112,0.00281677,3397.0,3396.9,3.35499]
[1765392155309,3.2078,3398.2,3398.0,0.14714]
[1765392155910,3.2078,3398.2,3398.1,0.14714]
[1765392156215,3.2078,3398.2,3398.1,1.96e-06]
[1765392156216,3.20990811,3398.2,3398.1,1.96e-06]
[1765392156912,3.20990811,3398.2,3398.1,0.14714196]
[1765392157110,3.20990811,3398.2,3398.1,1.96e-06]
[1765392158307,2.20990811,3398.2,3398.1,1.96e-06]
[1765392158514,0.00210811,3398.2,3398.1,0.14714196]
[1765392160716,3.20990811,3398.2,3397.8,0.00441248]
[1765392161214,0.00210811,3398.2,3398.1,0.14714]
[1765392161621,0.00210811,3398.2,3398.1,0.15040613]
[1765392161817,3.20990811,3398.2,3398.1,0.15040613]
[1765392162215,0.00210811,3398.2,3398.1,0.15040613]
[1765392162716,9.20990811,3398.2,3397.4,3.2078]
[1765392162920,3.775,3397.2,3397.0,3.2078]
[1765392163217,3.775,3397.2,3396.1,0.14722]
[1765392163218,24.8078,3397.1,3396.1,0.14722]
[1765392163419,3.2078,3396.7,3396.1,0.14722]
[1765392163618,3.775,3396.0,3395.9,3.2078]
[1765392163816,3.775,3396.0,3395.7,0.14724]
[1765392164118,3.2078,3396.1,3396.0,0.14723]
[1765392164319,24.8078,3396.1,3396.0,0.14723]
[1765392164719,3.2078,3396.1,3396.0,0.14723]
[1765392165117,24.8078,3396.1,3396.0,0.14723]
[1765392165520,3.775,3396.0,3395.9,0.00305837]
[1765392165822,3.775,3394.8,3394.6,3.2078]
[1765392166027,3.775,3394.8,3394.1,0.33715]
[1765392166028,3.2078,3394.7,3394.1,0.33715]
[1765392166324,3.2078,3394.7,3392.7,1.54752009]
[1765392166325,3.2078,3394.2,3393.3,3.2078]
[1765392166519,3.2078,3393.8,3393.3,3.2078]
[1765392166715,3.21078358,3393.8,3393.4,0.14734]
[1765392167317,3.21078358,3393.8,3393.3,3.20988259]
[1765392167529,0.00298358,3393.8,3393.7,3.35513]
[1765392167935,3.2078,3394.8,3394.7,0.14729]
[1765392168233,2.83480721,3394.8,3394.7,0.14729]
[1765392168428,3.2078,3395.7,3395.5,0.14725]
[1765392169033,9.21016613,3395.7,3395.3,0.00441904]
[1765392169333,3.21016613,3395.7,3394.7,0.14728]
[1765392169529,3.2078,3395.0,3394.3,3.2078]
[1765392169731,3.2078,3394.6,3393.9,0.14732]
[1765392169934,3.2078,3394.1,3393.9,0.14732]
[1765392170235,3.2078,3394.1,3393.7,0.00441904]
[1765392172530,0.00441904,3394.2,3393.7,0.00441904]
[1765392172531,0.00441904,3394.2,3393.7,3.21221904]
[1765392172930,0.00441904,3394.2,3394.1,0.14731]
[1765392173630,0.00441904,3394.2,3393.7,0.00441904]
[1765392174032,3.2078,3393.8,3393.7,0.00441904]
[1765392177033,3.2078,3393.8,3392.3,0.33715]
[1765392177034,6.88346433,3393.8,3392.3,0.33715]
[1765392177235,3.2078,3393.0,3392.5,0.14738]
[1765392177532,3.2078,3393.0,3392.3,0.33715]
[1765392177533,3.2078,3393.0,3392.6,0.14738]
[1765392177735,3.2078,3393.0,3392.3,0.33715]
[1765392177936,3.52833433,3393.5,3392.3,0.33715]
[1765392177937,3.2078,3392.4,3392.3,0.33715]
[1765392178138,3.2078,3392.4,3392.3,0.01710908]
[1765392178839,7.0686,3392.4,3392.3,9.08e-06]
[1765392179036,13.0686,3392.4,3391.1,0.14744]
[1765392179338,3.2078,3391.7,3391.2,3.2078]
[1765392179635,3.2078,3391.7,3389.8,1.78353561]
[1765392179636,3.2078,3391.8,3390.3,3.2078]
[1765392179941,3.2078,3391.8,3390.7,3.2078]
[1765392180342,3.2078,3391.2,3390.4,0.14747]
[1765392180535,3.2078,3392.0,3391.1,3.2078]
[1765392180731,0.00441904,3392.1,3390.3,0.00275949]
[1765392180732,0.00441904,3392.1,3391.5,3.2078]
[1765392181040,0.00441904,3392.1,3391.8,3.2078]
[1765392181233,0.00441904,3392.1,3391.5,0.14742]
[1765392181438,3.21221904,3392.1,3391.5,0.14742]
[1765392181943,3.21221904,3392.1,3391.4,3.2078]
[1765392181944,0.00441904,3392.1,3392.0,3.2078]
[1765392182345,1.904e-05,3392.1,3392.0,3.2078]
[1765392182540,3.2078,3393.2,3392.0,9.2078]
[1765392182840,3.2078,3393.2,3391.6,2.92349426]
[1765392182841,3.2078,3393.2,3392.9,0.14736]
[1765392183140,3.2078,3393.6,3392.9,0.15060643]
[1765392183541,0.00441904,3393.3,3392.9,0.15060643]
[1765392183745,0.00441904,3393.3,3392.9,6.15060643]
[1765392184043,3.2078,3394.0,3392.9,6.00324643]
[1765392184240,3.2078,3394.6,3393.9,0.14732]
[1765392184945,3.2078,3394.6,3393.6,3.2078]
[1765392185140,0.007326,3394.6,3393.9,0.00441904]
[1765392185448,0.14733,3393.8,3391.8,3.2078]
[1765392185740,3.2078,3393.0,3392.2,3.2078]
[1765392186335,0.00441904,3392.9,3392.6,3.2078]
[1765392186538,0.00441904,3392.9,3392.6,3.21076021]
[1765392186739,0.00441904,3392.9,3392.6,0.00296021]
[1765392187547,0.00441904,3392.9,3392.8,3.2078]
[1765392187743,0.00441904,3392.9,3392.6,0.00296021]
[1765392188051,0.00441904,3392.9,3392.8,0.14737]
[1765392188245,3.2078,3393.6,3392.7,3.2078]
[1765392188452,5.34818639,3396.0,3393.4,3.2078]
[1765392188453,3.2078,3394.1,3393.4,3.2078]
[1765392188644,5.1521,3394.5,3394.0,3.2078]
[1765392188845,5.1521,3394.5,3393.9,0.14732]
[1765392189043,5.1521,3394.5,3393.6,3.2078]
[1765392189352,3.2078,3393.9,3393.1,3.2078]
[1765392190144,3.2078,3393.4,3392.6,0.00296021]
[1765392190345,3.9397,3393.6,3393.0,3.2078]
[1765392190849,3.2078,3393.2,3392.9,0.14736]
[1765392191048,3.9397,3393.6,3392.6,3.21076021]
[1765392191049,3.2078,3393.6,3392.6,3.21076021]
[1765392191346,3.2078,3393.6,3393.1,0.14735]
[1765392191545,3.2078,3394.1,3393.1,0.14735]
[1765392191748,3.2078,3394.1,3394.0,0.14732]
[1765392192143,3.2078,3394.1,3393.2,0.14735]
[1765392192541,3.2078,3394.1,3392.6,0.00296021]
[1765392192542,3.2078,3394.1,3393.4,3.2078]
[1765392192747,3.2078,3394.1,3393.4,3.35514]
[1765392192948,0.00441904,3394.4,3393.7,0.14733]
[1765392193149,0.00441904,3394.4,3392.6,0.00296021]
[1765392193150,0.00441904,3394.4,3394.3,0.1473]
[1765392193444,0.00441904,3394.4,3394.3,3.3551]
[1765392194148,3.54495,3395.1,3394.3,9.2078]
[1765392194452,3.54495,3395.1,3395.0,3.2078]
[1765392194453,0.33715,3395.1,3395.0,3.2078]
[1765392194841,0.33715,3395.1,3395.0,9.35507]
[1765392195045,2.09768799,3397.5,3395.0,9.35507]
[1765392195046,3.2078,3397.0,3396.2,0.14722]
[1765392195353,0.00441904,3396.9,3396.3,0.00441904]
[1765392195654,0.00441904,3396.9,3396.7,0.1472]
[1765392195841,0.00441904,3396.9,3396.3,0.00441904]
[1765392196449,0.00441904,3396.9,3396.7,3.2078]
[1765392196649,0.00441904,3396.9,3396.3,0.00441904]
[1765392196650,0.00441904,3396.9,3396.4,3.2078]
[1765392197045,0.00441904,3396.9,3396.4,0.14721]
[1765392197046,3.2078,3396.7,3396.4,0.14721]
[1765392197245,3.2078,3396.6,3396.3,0.00441904]
[1765392197451,3.2078,3396.6,3396.2,0.00337933]
[1765392197751,9.2078,3396.6,3395.4,3.2078]
[1765392197950,3.2078,3396.1,3395.4,3.2078]
[1765392198347,1.5903,3396.0,3395.5,0.14725]
[1765392198646,1.5903,3396.0,3395.5,3.35787545]
[1765392198849,1.5903,3396.0,3395.5,0.15007545]
[1765392199043,3.2078,3395.7,3395.5,0.00282545]
[1765392199249,3.2078,3395.7,3394.6,3.35509]
[1765392199652,3.2078,3395.1,3394.2,3.2078]
[1765392199852,3.2078,3394.7,3393.8,0.14732]
[1765392200254,0.00441904,3394.6,3393.9,0.00441904]
[1765392200551,0.00768058,3394.6,3394.1,3.2078]